bitfinex/quotes_SOLUSD_20251030
["timestamp","ask_amount","ask_price","bid_price","bid_amount"]
[1761850215704,34.98364535,181.6,181.59,0.2]
[1761850216126,35.3596783,181.6,181.59,0.2]
[1761850216317,35.35832776,181.6,181.59,0.2]
[1761850216526,35.97832776,181.6,181.59,0.2]
[1761850218320,29.85171984,181.6,181.59,0.2]
[1761850218519,7.6374522,181.6,181.59,0.87]
[1761850218724,4.02071068,181.6,181.59,0.87]
[1761850218930,18.58163751,181.62,181.59,0.87]
[1761850219125,4.01337995,181.61,181.6,0.67]
[1761850219642,12.80618977,181.61,181.6,0.67]
[1761850220829,9.78882769,181.6,181.59,0.2]
[1761850221038,22.59580973,181.6,181.59,0.2]
[1761850221955,3.61225376,181.61,181.59,0.87]
[1761850222246,9.78882769,181.61,181.59,0.87]
[1761850222416,18.58163751,181.61,181.6,0.67]
[1761850222847,8.79280982,181.62,181.6,0.67]
[1761850223422,5.50577446,181.63,181.6,0.67]
[1761850223622,18.58163751,181.61,181.59,0.2]
[1761850223823,12.80689372,181.6,181.59,0.2]
[1761850225538,12.80689372,181.6,181.59,0.87]
[1761850225719,18.31350164,181.6,181.59,0.2]
[1761850226650,12.80689372,181.6,181.59,0.87]
[1761850226952,8.79280982,181.6,181.59,0.87]
[1761850227256,8.79280982,181.6,181.59,0.2]
[1761850227548,18.30749187,181.6,181.59,0.2]
[1761850227773,21.91974563,181.6,181.59,0.2]
[1761850227927,21.91974563,181.6,181.59,0.87]
[1761850228360,12.40506358,181.6,181.59,0.87]
[1761850228562,8.79280982,181.6,181.59,0.87]
[1761850228938,18.58163751,181.6,181.59,0.2]
[1761850229959,28.09838748,181.6,181.59,0.2]
[1761850230130,31.71064124,181.6,181.59,0.2]
[1761850237177,22.91783142,181.6,181.59,0.87]
[1761850237471,28.09838748,181.6,181.59,0.87]
[1761850237675,28.09838748,181.6,181.59,0.2]
[1761850237858,31.71064124,181.6,181.59,0.2]
[1761850238446,7.62239581,181.6,181.59,0.87]
[1761850238647,12.80295187,181.6,181.59,0.87]
[1761850240553,18.30955979,181.6,181.59,0.87]
[1761850241069,4.01014205,181.6,181.59,0.87]
[1761850241290,6.49140023,181.62,181.59,0.87]
[1761850241581,5.78912114,181.63,181.6,0.69]
[1761850241750,4.0109643,181.62,181.6,0.69]
[1761850242560,5.78912114,181.63,181.6,0.69]
[1761850243074,9.78882769,181.65,181.6,6.19655372]
[1761850243366,9.78882769,181.65,181.61,6.47912114]
[1761850243367,4.01394238,181.64,181.61,6.47912114]
[1761850243787,9.55381535,181.67,181.62,0.69]
[1761850243974,4.01546644,181.66,181.62,6.47912114]
[1761850244356,4.01546644,181.66,181.63,6.47912114]
[1761850244573,9.94126814,181.67,181.63,6.47912114]
[1761850244861,5.78912114,181.64,181.63,0.69]
[1761850245059,4.01566375,181.64,181.63,0.69]
[1761850245246,5.78912114,181.66,181.63,0.69]
[1761850245446,9.80467797,181.65,181.63,0.69]
[1761850245663,9.80467797,181.64,181.63,0.69]
[1761850246062,4.01555683,181.64,181.63,0.69]
[1761850247386,3.76469421,181.67,181.63,11.9847454]
[1761850247589,4.01816217,181.66,181.64,5.78912114]
[1761850247764,0.15244045,181.67,181.65,6.47912114]
[1761850247958,0.15244045,181.67,181.66,5.78912114]
[1761850248157,0.15244045,181.67,181.66,6.47912114]
[1761850249264,0.15244045,181.67,181.66,21.282]
[1761850249480,0.15244045,181.67,181.66,26.78678916]
[1761850250186,0.15244045,181.67,181.66,32.5759103]
[1761850250487,31.55326902,181.74,181.66,32.5759103]
[1761850250488,8.66644278,181.74,181.66,113.82700435]
[1761850250781,4.01678653,181.73,181.69,5.78912114]
[1761850250979,4.01678653,181.73,181.69,11.29287931]
[1761850251171,4.01678653,181.73,181.7,0.69]
[1761850252382,11.29087047,181.77,181.71,5.78912114]
[1761850252580,4.0133495,181.76,181.73,5.78912114]
[1761850252779,20.0885238,181.79,181.72,20.592]
[1761850252780,5.78912114,181.8,181.75,5.78912114]
[1761850252964,4.01385302,181.79,181.75,5.78912114]
[1761850253277,4.01385302,181.79,181.76,0.69]
[1761850253589,4.01385302,181.79,181.76,6.47912114]
[1761850253888,11.28942549,181.81,181.76,0.69]
[1761850254086,4.0122969,181.8,181.77,0.69]
[1761850254563,4.0122969,181.8,181.77,6.47912114]
[1761850254768,5.78912114,181.83,181.77,6.47912114]
[1761850254969,4.01024272,181.82,181.79,20.592]
[1761850255169,2.97547246,181.85,181.8,5.50055005]
[1761850255170,5.78912114,181.84,181.8,5.50055005]
[1761850255397,5.78912114,181.84,181.81,0.69]
[1761850255562,5.88912114,181.85,181.81,0.69]
[1761850255766,5.78912114,181.84,181.81,0.69]
[1761850255968,9.78882769,181.84,181.79,21.282]
[1761850256292,5.78912114,181.82,181.8,0.69]
[1761850257086,11.28899561,181.83,181.8,0.69]
[1761850257276,5.78912114,181.83,181.8,0.69]
[1761850257591,13.84759417,181.85,181.8,6.19050156]
[1761850257592,5.88912114,181.85,181.8,6.19050156]
[1761850257811,0.1,181.85,181.8,11.9796227]
[1761850257975,0.1,181.85,181.81,6.47912114]
[1761850258391,0.1,181.85,181.82,0.69]
[1761850258876,5.59917911,181.85,181.82,0.69]
[1761850259080,11.38830025,181.85,181.82,0.69]
[1761850259686,0.1,181.85,181.82,0.69]
[1761850260075,0.1,181.85,181.82,11.9790578]
[1761850260275,5.88912114,181.85,181.82,0.69]
[1761850260574,11.38817368,181.85,181.83,0.69]
[1761850260997,5.88912114,181.85,181.83,0.69]
[1761850261177,11.38826851,181.85,181.83,0.69]
[1761850261370,11.38826851,181.85,181.75,30.16984296]
[1761850261371,5.78912114,181.84,181.8,0.69]
[1761850261577,19.34674154,181.85,181.8,0.69]
[1761850261578,5.78912114,181.82,181.8,0.69]
[1761850262486,9.78882769,181.8,181.74,0.69]
[1761850262691,9.78882769,181.8,181.71,0.69]
[1761850262692,9.78882769,181.78,181.71,0.69]
[1761850262991,26.38112114,181.83,181.71,0.69]
[1761850262992,5.78912114,181.77,181.72,5.78912114]
[1761850263166,5.50061903,181.8,181.74,11.29138761]
[1761850263366,7.77035242,181.8,181.75,0.69]
[1761850263589,2.26973339,181.8,181.75,2.95973339]
[1761850263810,5.50058892,181.8,181.75,2.95973339]
[1761850264018,2.26973339,181.81,181.77,20.592]
[1761850264190,2.26973339,181.83,181.77,22.86173339]
[1761850264497,2.26973339,181.83,181.78,0.69]
[1761850264671,2.26973339,181.82,181.78,0.69]
[1761850264874,2.26973339,181.8,181.76,21.282]
[1761850265077,2.26973339,181.77,181.73,14.43939587]
[1761850265277,2.26973339,181.76,181.73,14.43939587]
[1761850265491,2.26973339,181.75,181.74,0.69]
[1761850265711,2.26973339,181.75,181.7,22.86173339]
[1761850265712,2.26973339,181.75,181.7,0.69]
[1761850266003,2.26973339,181.75,181.71,0.69]
[1761850266390,5.50165329,181.77,181.71,0.69]
[1761850266391,2.26973339,181.73,181.71,0.69]
[1761850266582,2.26973339,181.72,181.68,0.69]
[1761850266782,2.26973339,181.72,181.69,0.69]
[1761850267295,5.78446455,181.72,181.69,0.69]
[1761850267504,5.78446455,181.73,181.69,6.19382638]
[1761850267677,9.78882769,181.79,181.72,26.37646455]
[1761850267876,5.78446455,181.78,181.73,5.78446455]
[1761850268099,5.78446455,181.78,181.74,0.69]
[1761850268703,20.592,181.84,181.74,0.69]
[1761850268704,11.28446507,181.82,181.76,5.78446455]
[1761850268894,5.50000052,181.82,181.76,5.78446455]
[1761850269117,5.78446455,181.79,181.72,20.592]
[1761850269298,5.78446455,181.79,181.74,26.79424346]
[1761850269503,5.50079097,181.8,181.74,26.79424346]
[1761850269704,5.78446455,181.79,181.75,0.7]
[1761850270501,5.78446455,181.76,181.71,26.37646455]
[1761850270703,13.74983547,181.83,181.75,0.7]
[1761850270906,5.78446455,181.81,181.75,68.18446455]
[1761850271391,5.78446455,181.79,181.76,0.7]
[1761850271797,5.78446455,181.78,181.76,0.7]
[1761850272215,5.78446455,181.79,181.76,0.7]
[1761850273106,11.28536958,181.79,181.76,0.7]
[1761850273307,5.78446455,181.79,181.76,0.7]
[1761850273505,29.03651795,181.84,181.76,0.7]
[1761850273709,5.78446455,181.79,181.76,62.4]
[1761850274822,5.50115524,181.78,181.73,61.7]
[1761850275021,5.78446455,181.75,181.72,0.7]
[1761850275216,5.78446455,181.75,181.73,0.7]
[1761850276015,5.78446455,181.77,181.73,0.7]
[1761850276217,5.50085263,181.79,181.73,6.48446455]
[1761850276422,5.78446455,181.78,181.73,6.48446455]
[1761850276628,5.78446455,181.78,181.74,0.68]
[1761850277125,5.78446455,181.78,181.74,6.18223884]
[1761850277633,5.78446455,181.75,181.72,82.292]
[1761850277795,5.78446455,181.74,181.71,0.68]
[1761850278131,5.78446455,181.76,181.71,6.18321161]
[1761850278495,5.78446455,181.76,181.72,0.68]
[1761850278803,19.25096847,181.81,181.73,5.50266879]
[1761850279014,5.78446455,181.79,181.74,5.78446455]
[1761850279326,5.78446455,181.8,181.75,5.78446455]
[1761850279508,5.78446455,181.82,181.77,5.78446455]
[1761850280024,21.07297166,181.83,181.78,0.68]
[1761850280212,5.78446455,181.83,181.78,68.16446455]
[1761850280524,5.78446455,181.83,181.79,0.68]
[1761850280829,9.78882769,181.84,181.79,6.46446455]
[1761850280830,5.78446455,181.84,181.79,6.46446455]
[1761850281122,5.78446455,181.84,181.79,6.18056654]
[1761850281336,0.1,181.85,181.8,6.46446455]
[1761850281500,0.1,181.85,181.81,0.68]
[1761850282099,5.88446455,181.85,181.81,0.68]
[1761850282317,5.78446455,181.84,181.78,6.46446455]
[1761850282628,5.78446455,181.84,181.79,5.50084167]
[1761850282838,5.78446455,181.83,181.79,6.18084167]
[1761850283024,5.78446455,181.83,181.8,0.68]
[1761850283327,5.78446455,181.84,181.8,0.68]
[1761850285111,0.1,181.85,181.8,11.96487765]
[1761850285402,0.1,181.85,181.81,5.78446455]
[1761850285403,4.10735856,181.85,181.81,5.78446455]
[1761850285619,4.10735856,181.85,181.82,0.68]
[1761850286333,0.1,181.85,181.82,0.68]
[1761850286532,4.10843031,181.85,181.82,0.68]
[1761850286899,4.10843031,181.85,181.82,6.17987805]
[1761850287322,4.10843031,181.85,181.83,0.68]
[1761850287728,15.39204998,181.85,181.8,67.88048701]
[1761850288030,9.79289486,181.84,181.81,0.68]
[1761850288230,5.78446455,181.84,181.81,0.68]
[1761850289425,9.78882769,181.81,181.75,0.68]
[1761850289604,5.78446455,181.78,181.75,0.68]
[1761850289809,5.78446455,181.81,181.76,5.78446455]
[1761850290220,9.78882769,181.83,181.77,6.46446455]
[1761850290221,5.78446455,181.83,181.77,6.46446455]
[1761850290426,4.01545508,181.82,181.77,6.46446455]
[1761850290624,4.01545508,181.82,181.78,0.68]
[1761850290821,5.78446455,181.81,181.78,0.68]
[1761850291430,4.01966506,181.8,181.78,6.1811185]
[1761850291732,5.78446455,181.83,181.78,6.46446455]
[1761850292029,9.80391886,181.82,181.79,0.68]
[1761850292233,4.01945431,181.81,181.79,0.68]
[1761850293041,9.80391886,181.81,181.79,0.68]
[1761850293224,4.01945431,181.8,181.79,0.68]
[1761850293732,4.01945431,181.8,181.79,6.18085263]
[1761850294041,2.3693477,181.85,181.79,8.45020033]
[1761850294204,4.02658427,181.84,181.8,2.9493477]
[1761850294412,4.02658427,181.84,181.82,20.592]
[1761850294634,0.1,181.85,181.82,20.592]
[1761850294635,4.02658427,181.83,181.82,84.5613477]
[1761850294818,0.1,181.85,181.82,85.2413477]
[1761850295004,0.1,181.85,181.83,0.68]
[1761850295205,4.12658427,181.85,181.83,6.17949751]
[1761850295402,4.02658427,181.84,181.83,6.17949751]
[1761850295611,4.02658427,181.84,181.83,5.49949751]
[1761850295842,0.1,181.85,181.83,5.49949751]
[1761850296045,0.1,181.85,181.84,0.68]
[1761850296247,0.1,181.85,181.83,61.7]
[1761850296408,2.3693477,181.85,181.83,61.7]
[1761850296607,0.1,181.85,181.83,61.7]
[1761850296840,0.1,181.85,181.84,0.68]
[1761850300632,0.1,181.85,181.84,6.17934007]
[1761850300843,21.22993293,182.11,181.84,73.65449727]
[1761850300844,5.7751572,181.91,181.84,73.65449727]
[1761850301015,10.00731113,181.93,181.87,26.3671572]
[1761850301214,10.28573217,181.94,181.88,5.7751572]
[1761850301434,5.59606041,181.95,181.89,19.24239924]
[1761850301711,11.37121296,181.95,181.9,0.7]
[1761850302038,5.8751572,181.95,181.9,0.7]
[1761850302228,11.37119804,181.95,181.9,0.7]
[1761850302739,0.1,181.95,181.9,27.0671572]
[1761850302941,0.1,181.95,181.91,0.7]
[1761850303540,8.8661854,181.95,181.91,0.7]
[1761850304141,8.8661854,181.95,181.91,6.19712865]
[1761850304441,8.8661854,181.95,181.91,0.7]
[1761850304741,8.8661854,181.95,181.92,0.7]
[1761850305441,0.1,181.95,181.92,0.7]
[1761850305637,0.1,181.95,181.93,5.49661957]
[1761850306044,0.1,181.95,181.93,0.7]
[1761850306417,8.8661854,181.95,181.93,0.7]
[1761850309239,0.1,181.95,181.93,0.7]
[1761850309442,0.1,181.95,181.93,6.1965451]
[1761850309825,0.1,181.95,181.93,0.7]
[1761850310145,8.8661854,181.95,181.93,0.7]
[1761850311026,8.7661854,181.94,181.9,21.292]
[1761850311347,8.7661854,181.94,181.91,0.7]
[1761850311547,0.1,181.95,181.91,0.7]
[1761850311727,0.1,181.95,181.91,9.4661854]
[1761850312141,0.1,181.95,181.92,0.7]
[1761850312745,0.1,181.95,181.92,6.19675847]
[1761850313126,0.1,181.95,181.93,0.7]
[1761850313949,8.8661854,181.95,181.93,0.7]
[1761850314155,8.7661854,181.94,181.9,21.292]
[1761850314366,5.59602411,181.95,181.92,20.592]
[1761850314661,8.7661854,181.94,181.92,21.292]
[1761850315044,0.1,181.95,181.92,0.7]
[1761850315232,8.8661854,181.95,181.93,0.7]
[1761850315558,0.1,181.95,181.93,0.7]
[1761850316966,0.1,181.95,181.94,5.49631746]
[1761850317452,0.1,181.95,181.94,6.19631746]
[1761850318053,0.1,181.95,181.94,35.55450286]
[1761850318839,0.1,181.95,181.94,26.78831746]
[1761850319038,0.1,181.95,181.94,21.292]
[1761850319334,0.1,181.95,181.94,0.7]
[1761850319557,0.1,181.95,181.93,5.4965867]
[1761850319739,0.1,181.95,181.93,6.1965867]
[1761850320348,3.64021866,181.95,181.93,5.4965867]
[1761850320546,3.64021866,181.95,181.94,0.7]
[1761850320751,0.1,181.95,181.94,0.7]
[1761850322456,0.1,181.95,181.94,6.19631746]
[1761850323273,0.1,181.95,181.94,9.73653612]
[1761850324050,5.5943148,182.01,181.94,21.292]
[1761850324351,3.54021866,181.96,181.94,82.992]
[1761850324678,3.54021866,181.96,181.94,88.48830097]
[1761850324974,3.54021866,181.96,181.95,0.7]
[1761850325276,3.54021866,181.96,181.94,87.78830097]
[1761850325450,3.54021866,181.96,181.94,88.48830097]
[1761850326145,5.49517949,181.98,181.95,0.7]
[1761850326346,3.54021866,181.96,181.95,0.7]
[1761850326649,3.54021866,181.96,181.95,62.4]
[1761850327552,5.49450549,182.0,181.95,67.89599651]
[1761850327752,3.54021866,181.97,181.95,67.89599651]
[1761850329199,3.54021866,181.96,181.95,61.7]
[1761850329384,9.98882769,181.99,181.92,61.7]
[1761850329681,9.78882769,181.97,181.91,20.592]
[1761850329883,3.54021866,181.92,181.88,62.37]
[1761850330180,3.54021866,181.91,181.89,0.67]
[1761850331174,0.2,181.96,181.89,0.67]
[1761850331380,3.54021866,181.91,181.89,0.67]
[1761850331975,3.54021866,181.93,181.9,5.49752611]
[1761850332181,3.54021866,181.98,181.9,5.49752611]
[1761850332182,3.54021866,181.95,181.9,5.49752611]
[1761850332363,3.54021866,181.93,181.9,26.75952611]
[1761850332763,3.54021866,181.94,181.91,0.67]
[1761850333167,13.32904635,181.98,181.91,0.67]
[1761850333168,3.54021866,181.93,181.91,0.67]
[1761850333575,3.54021866,181.94,181.91,0.67]
[1761850333770,3.54021866,181.95,181.91,0.67]
[1761850333969,9.03637016,181.95,181.91,0.67]
[1761850334284,3.54021866,181.94,181.91,0.67]
[1761850335060,3.54021866,181.92,181.88,82.962]
[1761850335267,3.54021866,181.91,181.88,82.962]
[1761850335782,3.54021866,181.92,181.89,0.68]
[1761850335984,9.03717949,181.92,181.89,0.68]
[1761850336175,3.54021866,181.92,181.89,0.68]
[1761850336374,3.54021866,181.9,181.86,0.68]
[1761850336562,3.54021866,181.9,181.86,62.38]
[1761850336967,3.54021866,181.89,181.86,0.68]
[1761850337167,3.54021866,181.89,181.84,0.68]
[1761850337387,3.54021866,181.88,181.84,21.272]
[1761850337695,3.54021866,181.88,181.85,0.68]
[1761850338393,3.54021866,181.87,181.84,61.7]
[1761850338556,3.54021866,181.87,181.83,20.592]
[1761850338758,3.54021866,181.87,181.83,26.09161365]
[1761850338960,3.54021866,181.87,181.84,0.68]
[1761850339402,3.54021866,181.86,181.82,87.79187295]
[1761850339764,5.49776223,181.9,181.83,0.68]
[1761850340083,9.03841214,181.88,181.83,6.17949893]
[1761850340273,3.54021866,181.87,181.83,0.68]
[1761850340472,3.54021866,181.86,181.83,0.68]
[1761850341264,3.54021866,181.87,181.83,6.17950462]
[1761850341790,3.54021866,181.87,181.84,0.68]
[1761850342363,3.54021866,181.88,181.84,6.17920419]
[1761850342775,3.54021866,181.88,181.85,0.68]
[1761850342972,3.54021866,181.88,181.84,6.17920419]
[1761850343176,9.03836373,181.88,181.84,0.68]
[1761850343376,9.03836373,181.88,181.83,5.49959083]
[1761850343566,3.54021866,181.88,181.84,0.68]
[1761850343980,5.49787099,181.89,181.84,0.68]
[1761850344190,3.54021866,181.88,181.84,6.17914994]
[1761850344700,3.54021866,181.88,181.85,0.68]
[1761850344870,3.54021866,181.88,181.84,6.17914994]
[1761850345192,9.03848485,181.88,181.84,0.68]
[1761850345393,3.54021866,181.87,181.83,67.19955944]
[1761850345691,3.54021866,181.87,181.83,67.87955944]
[1761850346470,3.54021866,181.87,181.83,67.19955944]
[1761850346671,5.49826619,181.88,181.83,67.19955944]
[1761850346884,0.2,181.9,181.84,0.68]
[1761850347095,3.54021866,181.88,181.83,61.7]
[1761850347285,3.54021866,181.87,181.83,62.38]
[1761850347592,3.54021866,181.88,181.83,67.87962783]
[1761850347773,3.54021866,181.88,181.83,67.19962783]
[1761850347975,3.54021866,181.88,181.84,0.68]
[1761850348176,9.03861915,181.88,181.84,0.68]
[1761850348378,3.54021866,181.87,181.84,0.68]
[1761850348594,3.54021866,181.88,181.84,6.17931628]
[1761850348976,9.0384067,181.88,181.84,6.17931628]
[1761850349180,9.0384067,181.88,181.84,0.68]
[1761850349379,3.54021866,181.88,181.84,6.17926013]
[1761850349673,9.03848011,181.88,181.84,67.87926013]
[1761850350798,9.03848011,181.88,181.85,0.68]
[1761850350992,3.54021866,181.88,181.85,0.68]
[1761850351500,9.03841762,181.88,181.84,67.19926013]
[1761850351798,9.03841762,181.88,181.84,61.7]
[1761850352018,3.54021866,181.86,181.84,61.7]
[1761850352195,3.54021866,181.85,181.84,61.7]
[1761850353014,9.03947781,181.85,181.82,61.7]
[1761850353192,3.54021866,181.83,181.79,88.47277226]
[1761850353606,3.54021866,181.83,181.8,0.68]
[1761850353801,3.54021866,181.84,181.8,0.68]
[1761850354310,3.54021866,181.86,181.8,0.68]
[1761850354606,3.54021866,181.84,181.8,0.68]
[1761850354905,3.54021866,181.83,181.8,0.68]
[1761850355100,3.54021866,181.83,181.8,6.180521]
[1761850355412,3.54021866,181.84,181.8,6.180521]
[1761850356696,3.54021866,181.84,181.81,0.68]
[1761850356897,0.2,181.89,181.81,0.68]
[1761850357102,3.54021866,181.86,181.81,62.38]
[1761850357600,3.54021866,181.86,181.82,0.68]
[1761850357914,3.54021866,181.87,181.82,0.68]
[1761850358316,3.54021866,181.86,181.82,0.68]
[1761850358604,3.54021866,181.87,181.82,6.17988581]
[1761850359110,3.54021866,181.87,181.83,0.69]
[1761850360089,3.54021866,181.87,181.83,6.18939643]
[1761850360292,5.49786127,181.89,181.83,6.18939643]
[1761850360506,3.54021866,181.86,181.84,0.69]
[1761850361207,3.54021866,181.86,181.84,62.39]
[1761850362303,9.98882769,181.9,181.84,62.39]
[1761850362304,2.8743519,181.91,181.85,0.69]
[1761850362497,9.03747965,181.91,181.85,86.52221866]
[1761850362807,3.54021866,181.89,181.85,82.982]
[1761850362983,3.54021866,181.89,181.85,82.292]
[1761850363313,3.54021866,181.9,181.86,0.69]
[1761850363499,3.54021866,181.89,181.86,0.69]
[1761850363679,3.54021866,181.88,181.85,61.7]
[1761850363885,9.03899537,181.86,181.82,67.19984776]
[1761850364095,3.54021866,181.85,181.81,88.48218049]
[1761850364406,3.54021866,181.88,181.82,4.23021866]
[1761850364923,3.54021866,181.88,181.83,0.69]
[1761850365289,2.26762324,181.89,181.84,5.49934007]
[1761850365810,2.26762324,181.89,181.85,0.69]
[1761850366383,2.26762324,181.89,181.85,6.18896463]
[1761850366798,7.76551438,181.89,181.86,0.69]
[1761850366996,2.26762324,181.88,181.85,0.69]
[1761850367200,2.26762324,181.86,181.84,61.7]
[1761850367954,2.26762324,181.87,181.84,61.7]
[1761850368216,2.26762324,181.87,181.84,62.39]
[1761850368428,2.26762324,181.87,181.84,61.7]
[1761850368429,2.26762324,181.86,181.84,61.7]
[1761850369124,2.46762324,181.85,181.82,61.7]
[1761850369303,2.26762324,181.83,181.78,62.39]
[1761850369501,2.26762324,181.81,181.78,62.39]
[1761850370003,2.26762324,181.81,181.79,0.69]
[1761850370202,2.26762324,181.81,181.78,62.39]
[1761850371921,2.26762324,181.81,181.79,0.69]
[1761850372117,2.26762324,181.82,181.79,0.69]
[1761850373612,4.51057497,181.89,181.8,2.26762324]
[1761850373813,4.51057497,181.89,181.81,2.26762324]
[1761850373814,2.26762324,181.87,181.81,2.26762324]
[1761850374013,2.26762324,181.86,181.82,0.69]
[1761850374624,2.26762324,181.86,181.8,0.69]
[1761850374625,2.26762324,181.83,181.8,0.69]
[1761850375325,29.23498864,181.86,181.78,20.592]
[1761850375326,2.26762324,181.82,181.78,20.592]
[1761850375539,29.23498864,181.86,181.78,21.282]
[1761850375540,2.26762324,181.81,181.78,21.282]
[1761850375702,2.26762324,181.8,181.76,0.69]
[1761850376014,2.26762324,181.8,181.76,21.282]
[1761850376198,29.03498864,181.86,181.77,0.69]
[1761850376405,2.26762324,181.84,181.78,20.592]
[1761850376604,7.76704037,181.84,181.79,5.50085263]
[1761850376806,7.76704037,181.84,181.79,8.45847587]
[1761850377123,2.26762324,181.84,181.8,0.69]
[1761850377421,7.76671689,181.85,181.8,0.69]
[1761850378313,2.26762324,181.84,181.8,0.69]
[1761850378711,2.26762324,181.84,181.8,62.39]
[1761850379024,2.26762324,181.84,181.8,67.89049596]
[1761850379228,5.49877135,181.86,181.81,0.69]
[1761850379415,7.76639459,181.86,181.81,0.69]
[1761850379621,7.76639459,181.86,181.81,2.95762324]
[1761850379831,7.76639459,181.86,181.82,0.69]
[1761850380206,2.26762324,181.85,181.82,0.69]
[1761850380728,2.26762324,181.85,181.82,6.18993851]
[1761850380915,2.26762324,181.86,181.82,0.69]
[1761850381115,2.26762324,181.86,181.8,77.71898464]
[1761850381116,2.26762324,181.83,181.8,67.20049848]
[1761850381312,2.26762324,181.81,181.76,62.39]
[1761850381521,2.26762324,181.8,181.76,5.50150475]
[1761850381705,2.26762324,181.8,181.77,0.69]
[1761850381907,0.2,181.84,181.77,0.69]
[1761850382116,7.76798629,181.81,181.77,0.69]
[1761850382322,4.04700074,181.8,181.77,0.69]
[1761850382518,6.31462398,181.8,181.77,0.69]
[1761850382744,2.26762324,181.78,181.75,82.492]
[1761850382906,2.26762324,181.77,181.75,0.2]
[1761850384415,7.76915082,181.77,181.75,0.2]
[1761850384738,2.26762324,181.77,181.75,0.2]
[1761850384911,2.26762324,181.76,181.75,0.2]
[1761850386211,7.7693838,181.76,181.75,0.2]
[1761850386414,11.8123382,181.76,181.75,0.2]
[1761850386644,21.80116589,181.76,181.75,0.2]
[1761850389358,63.0643701,181.76,181.62,61.7]
[1761850389655,2.26762324,181.68,181.65,0.7]
[1761850389821,2.26762324,181.66,181.62,0.7]
[1761850390822,2.26762324,181.65,181.62,0.7]
[1761850391023,2.26762324,181.65,181.59,21.492]
[1761850391234,2.46762324,181.65,181.61,13.7605453]
[1761850391439,12.25645093,181.65,181.61,13.7605453]
[1761850391636,2.26762324,181.65,181.59,0.2]
[1761850391933,2.26762324,181.65,181.62,0.7]
[1761850392948,2.26762324,181.66,181.64,0.9]
[1761850393322,2.87791379,181.7,181.64,0.9]
[1761850393323,2.26762324,181.68,181.65,0.7]
[1761850393527,2.26762324,181.67,181.65,0.7]
[1761850393731,2.26762324,181.68,181.65,0.7]
[1761850394638,2.26762324,181.67,181.65,0.7]
[1761850394834,2.26762324,181.66,181.64,0.2]
[1761850395051,2.26762324,181.65,181.64,0.2]
[1761850395726,2.26762324,181.66,181.64,0.9]
[1761850396143,15.29276165,181.69,181.65,0.7]
[1761850396456,2.26762324,181.68,181.65,0.7]
[1761850396669,2.87791379,181.7,181.65,6.20503453]
[1761850396829,5.14553703,181.7,181.65,6.20503453]
[1761850397163,2.26762324,181.69,181.66,0.7]
[1761850397765,2.26762324,181.67,181.64,0.2]
[1761850398048,2.26762324,181.66,181.64,0.9]
[1761850398633,2.26762324,181.65,181.64,0.2]
[1761850399869,2.26762324,181.65,181.64,0.9]
[1761850400363,2.26762324,181.65,181.64,0.2]
[1761850400786,2.26762324,181.67,181.64,0.9]
[1761850401073,2.26762324,181.65,181.64,0.2]
[1761850401879,2.26762324,181.66,181.64,0.2]
[1761850402744,2.26762324,181.66,181.64,0.9]
[1761850403373,7.77251353,181.66,181.64,0.9]
[1761850403558,5.50489029,181.66,181.64,0.9]
[1761850403763,7.77251353,181.66,181.64,0.9]
[1761850404156,2.26762324,181.67,181.64,0.9]
[1761850404353,2.26762324,181.67,181.65,0.7]
[1761850404952,7.77211953,181.67,181.64,0.2]
[1761850405147,2.26762324,181.68,181.64,6.40513739]
[1761850405345,17.56037204,181.69,181.64,0.9]
[1761850405551,29.05244938,181.69,181.64,0.9]
[1761850405792,2.26762324,181.65,181.64,0.2]
[1761850406681,7.77271545,181.65,181.64,0.2]
[1761850408166,2.26762324,181.65,181.64,0.2]